fUST/lending_fUST_20250609
["ID","MTS","AMOUNT","RATE_DAILY","PERIOD"]
[365080303,1749447039061,-440.0,0.00019451,2]
[365080304,1749447039071,-440.0,0.00019451,2]
[365080305,1749447039080,-440.0,0.00019451,2]
[365080306,1749447039090,-440.0,0.00019451,2]
[365080307,1749447039100,-241.63910499,0.00019451,2]
[365080469,1749447043657,-198.36089501,0.00019451,2]
[365080470,1749447043669,-440.0,0.00019451,2]
[365080471,1749447043679,-440.0,0.00019451,2]
[365080472,1749447043688,-75.78190048,0.00019451,2]
[365080474,1749447046740,-364.21809952,0.00019451,2]
[365080475,1749447046755,-148.56346352,0.00019451,2]
[365080476,1749447047787,-91.43653648,0.00019451,2]
[365080477,1749447047797,-440.0,0.00019451,2]
[365080478,1749447047807,-155.92895944,0.00019617,2]
[365080479,1749447047817,-500.0,0.00019717,2]
[365080480,1749447047826,-500.0,0.00019717,2]
[365080481,1749447047836,-500.0,0.00019717,2]
[365080482,1749447047845,-500.0,0.00019717,2]
[365080483,1749447047854,-500.0,0.00019717,2]
[365080484,1749447047863,-500.0,0.00019717,2]
[365080485,1749447047873,-500.0,0.00019717,2]
[365080486,1749447047882,-611.54608128,0.00019717,2]
[365080487,1749447047892,-500.0,0.00019717,2]
[365080488,1749447047901,-500.0,0.00019717,2]
[365080489,1749447047912,-500.0,0.00019717,2]
[365080490,1749447047921,-500.0,0.00019717,2]
[365080491,1749447047931,-500.0,0.00019717,2]
[365080492,1749447047940,-500.0,0.00019717,2]
[365080493,1749447047953,-500.0,0.00019717,2]
[365080494,1749447047963,-500.0,0.00019717,2]
[365080495,1749447047972,-500.0,0.00019717,2]
[365080496,1749447047982,-500.0,0.00019717,2]
[365080497,1749447047991,-501.7171872,0.00019717,2]
[365080498,1749447048000,-407.10341233,0.00019717,2]
[365080499,1749447048010,-500.0,0.00019717,2]
[365080500,1749447048019,-410.82215092,0.00019717,2]
[365080501,1749447048029,-500.0,0.00019717,2]
[365080502,1749447048039,-500.0,0.00019717,2]
[365080503,1749447048049,-535.06128442,0.00019717,2]
[365080504,1749447048058,-500.0,0.00019717,2]
[365080505,1749447048068,-500.0,0.00019717,2]
[365080506,1749447048077,-500.0,0.00019717,2]
[365080507,1749447048087,-500.0,0.00019717,2]
[365080508,1749447048097,-500.0,0.00019717,2]
[365080509,1749447048106,-500.0,0.00019717,2]
[365080510,1749447048116,-500.0,0.00019717,2]
[365080511,1749447048126,-500.0,0.00019717,2]
[365080512,1749447048135,-500.0,0.00019717,2]
[365080513,1749447048145,-500.0,0.00019717,2]
[365080514,1749447048154,-500.0,0.00019724,2]
[365080515,1749447048163,-440.0,0.00019724,2]
[365080516,1749447048174,-440.0,0.00019724,2]
[365080517,1749447048185,-440.0,0.00019724,2]
[365080518,1749447048195,-440.0,0.00019724,2]
[365080519,1749447048204,-440.0,0.00019724,2]
[365080520,1749447048213,-440.0,0.00019724,2]
[365080521,1749447048225,-440.0,0.00019724,2]
[365080522,1749447048235,-440.0,0.00019724,2]
[365080523,1749447048407,-459.72,0.00019724,2]
[365080524,1749447048438,-440.0,0.00019724,2]
[365080525,1749447048449,-440.0,0.00019724,2]
[365080526,1749447048460,-308.44010111,0.00019724,2]
[365080527,1749447048475,-131.55989889,0.00019724,2]
[365080528,1749447048486,-440.0,0.00019724,2]
[365080529,1749447048496,-524.23,0.00019724,2]
[365080530,1749447048507,-440.0,0.00019724,2]
[365080531,1749447048517,-440.0,0.00019724,2]
[365080532,1749447048528,-440.0,0.00019724,2]
[365080533,1749447048538,-440.0,0.00019724,2]
[365080534,1749447048548,-440.0,0.00019724,2]
[365080535,1749447048558,-549.99922018,0.00019725,2]
[365080536,1749447048568,-440.0,0.00019725,2]
[365080537,1749447048578,-440.0,0.00019725,2]
[365080538,1749447048589,-206.8150448,0.00019725,2]
[365080540,1749447170532,165.258263,0.00013699,2]
[365080543,1749447198247,195.0,0.000178,2]
[365080551,1749448154646,165.258263,0.00013699,2]
[365080597,1749448231886,-521.23,0.00018333,2]
[365080598,1749448231898,-1903.2098876,0.00018757,2]
[365080599,1749448231908,-700.406299,0.00018844,2]
[365080600,1749448231918,-300.0,0.00018999,2]
[365080601,1749448231928,-1200.0,0.00018999,2]
[365080602,1749448231938,-6644.99027729,0.00019,7]
[365080603,1749448232001,-1913.38560545,0.00019,7]
[365080604,1749448232011,-100.6042772,0.00019725,2]
[365080614,1749448237697,-54.3957228,0.00019725,2]
[365080615,1749448237709,-1000.0,0.000198,2]
[365080616,1749448237719,-1000.0,0.000198,3]
[365080617,1749448237729,-163.96020559,0.000199,2]
[365080618,1749448237741,-441.8741745,0.000199,2]
[365080619,1749448237751,-401.70168737,0.0001992,2]
[365080620,1749448237762,-600.78926804,0.00019999,2]
[365080621,1749448237772,-212.31357232,0.00019999,2]
[365080622,1749448237783,-500.0,0.00019999,2]
[365080623,1749448237794,-226.11792049,0.00019999,2]
[365080624,1749448237807,-6234.14047638,0.0002,2]
[365080625,1749448237817,-2684.56817618,0.0002,2]
[365080626,1749448237827,-4059.74901075,0.0002,2]
[365080627,1749448237837,-35250.04538461,0.0002,2]
[365080628,1749448237847,-57433.60171405,0.0002,2]
[365080629,1749448237859,-412.75043494,0.0002,2]
[365080630,1749448237871,-685.88,0.0002,2]
[365080631,1749448237892,-7168.51581164,0.0002,2]
[365080632,1749448237902,-3303.53576142,0.0002,2]
[365080633,1749448237912,-501.10050225,0.0002,2]
[365080634,1749448237922,-4000.0,0.0002,2]
[365080635,1749448237932,-1042.47,0.0002,2]
[365080636,1749448237941,-441.87417449,0.00020072,2]
[365080637,1749448237951,-172.502,0.00020135,2]
[365080638,1749448237961,-178.90431822,0.00020135,2]
[365080639,1749448237971,-441.87417449,0.00020245,2]
[365080640,1749448237981,-155.0,0.00020273,2]
[365080641,1749448237991,-441.87417449,0.00020417,3]
[365080642,1749448238001,-165.258263,0.00020548,2]
[365080643,1749448238011,-500.0,0.00020548,2]
[365080644,1749448238021,-187.18641222,0.00020548,2]
[365080645,1749448238031,-441.87417449,0.0002059,3]
[365080646,1749448238041,-302.22424885,0.00020646,2]
[365080647,1749448238051,-420.0,0.00020709,2]
[365080648,1749448238061,-160.0,0.00020736,2]
[365080649,1749448238071,-424.05420114,0.00020736,2]
[365080650,1749448238081,-213.08899333,0.00020736,2]
[365080651,1749448238092,-834.7738823,0.00020736,2]
[365080652,1749448238102,-160.0,0.00020736,2]
[365080653,1749448238112,-160.0,0.00020736,2]
[365080654,1749448238122,-842.5625,0.00020736,2]
[365080655,1749448238136,-229.64266968,0.00020736,2]
[365080656,1749448238146,-500.0,0.00020758,2]
[365080657,1749448238156,-500.0,0.00020758,2]
[365080658,1749448238168,-500.0,0.00020758,2]
[365080659,1749448238179,-577.72026439,0.00020758,2]
[365080660,1749448238189,-441.87417449,0.00020762,3]
[365080661,1749448238199,-1000.0,0.0002078,2]
[365080662,1749448238210,-1100.73,0.000208,5]
[365080663,1749448238220,-1200.0,0.0002081,2]
[365080664,1749448238230,-441.87417449,0.00020934,4]
[365080665,1749448238240,-803.34,0.00021,2]
[365080666,1749448238250,-195.0,0.00021,2]
[365080667,1749448238261,-441.87417449,0.00021107,4]
[365080668,1749448238270,-441.87417449,0.00021279,5]
[365080669,1749448238280,-361.72023424,0.000213,2]
[365080670,1749448238437,-142549.73078086,0.00021395,2]
[365080671,1749448238448,-577.18,0.000214,2]
[365080672,1749448238458,-441.87417449,0.00021452,5]
[365080673,1749448238468,-441.87417449,0.00021624,5]
[365080674,1749448238477,-1563.7,0.00021666,2]
[365080675,1749448238487,-500.0,0.00021692,2]
[365080676,1749448238497,-361.72023422,0.000217,2]
[365080677,1749448238507,-441.87417449,0.00021797,6]
[365080678,1749448238517,-778.98,0.0002181,2]
[365080679,1749448238526,-778.98,0.0002191,2]
[365080680,1749448238536,-440.0,0.00021917,4]
[365080681,1749448238545,-440.0,0.00021917,4]
[365080682,1749448238555,-430.0,0.00021917,4]
[365080683,1749448238565,-579.4501952,0.00021917,4]
[365080684,1749448238574,-439.4364531,0.00021917,4]
[365080685,1749448238584,-440.0,0.00021917,4]
[365080686,1749448238593,-440.0,0.00021917,4]
[365080687,1749448238603,-504.36641913,0.00021917,4]
[365080688,1749448238613,-440.0,0.00021917,4]
[365080689,1749448238623,-476.3,0.00021917,4]
[365080690,1749448238634,-440.0,0.00021917,4]
[365080691,1749448238644,-5051.56,0.00021917,4]
[365080692,1749448238654,-450.44,0.00021917,4]
[365080693,1749448238664,-440.0,0.00021917,4]
[365080694,1749448238674,-440.0,0.00021917,4]
[365080695,1749448238683,-440.0,0.00021917,4]
[365080696,1749448238693,-420.0,0.00021917,4]
[365080697,1749448238703,-500.0,0.00021917,4]
[365080698,1749448238712,-500.0,0.00021917,4]
[365080699,1749448238722,-500.0,0.00021917,4]
[365080700,1749448238732,-500.0,0.00021917,4]
[365080701,1749448238741,-500.0,0.00021917,4]
[365080702,1749448238751,-500.0,0.00021917,4]
[365080703,1749448238761,-500.0,0.00021917,4]
[365080704,1749448238771,-500.0,0.00021917,4]
[365080705,1749448238780,-500.0,0.00021917,4]
[365080706,1749448238790,-500.0,0.00021917,4]
[365080707,1749448238800,-500.0,0.00021917,4]
[365080708,1749448238814,-500.0,0.00021917,4]
[365080709,1749448238824,-969.65,0.00021917,4]
[365080710,1749448238833,-500.0,0.00021917,4]
[365080711,1749448238843,-500.0,0.00021917,4]
[365080712,1749448238853,-336.28,0.00021917,4]
[365080713,1749448238863,-440.0,0.00021917,4]
[365080714,1749448238873,-440.0,0.00021917,4]
[365080715,1749448238884,-430.0,0.00021917,4]
[365080716,1749448238895,-169.69308883,0.00021917,4]
[365080717,1749448238904,-440.0,0.00021917,4]
[365080718,1749448238914,-498.39,0.00021917,4]
[365080719,1749448238924,-440.0,0.00021917,4]
[365080720,1749448238935,-500.0,0.00021917,2]
[365080721,1749448238944,-609.7,0.00021917,4]
[365080722,1749448238954,-440.0,0.00021917,4]
[365080723,1749448238965,-586.04,0.00021917,4]
[365080724,1749448238983,-440.0,0.00021917,4]
[365080725,1749448239000,-741.03,0.00021917,4]
[365080726,1749448239011,-440.0,0.00021917,4]
[365080727,1749448239021,-525.07,0.00021917,4]
[365080728,1749448239032,-440.0,0.00021917,4]
[365080729,1749448239043,-899.42,0.00021917,4]
[365080730,1749448239053,-787.11,0.00021917,4]
[365080731,1749448239064,-440.0,0.00021917,4]
[365080732,1749448239074,-440.0,0.00021917,4]
[365080733,1749448239087,-440.0,0.00021917,4]
[365080734,1749448239097,-440.0,0.00021917,4]
[365080735,1749448239108,-440.0,0.00021917,4]
[365080736,1749448239118,-440.0,0.00021917,4]
[365080737,1749448239128,-440.0,0.00021917,2]
[365080738,1749448239140,-440.0,0.00021917,4]
[365080739,1749448239150,-440.0,0.00021917,4]
[365080740,1749448239162,-178.49850881,0.00021918,2]
[365080741,1749448239172,-441.87417449,0.00021969,6]
[365080742,1749448239183,-296.88418911,0.00021973,2]
[365080743,1749448239193,-500.0,0.00021973,2]
[365080744,1749448239204,-506.56918345,0.00021973,2]
[365080745,1749448239214,-509.61597638,0.00021973,2]
[365080746,1749448239223,-500.0,0.00021973,2]
[365080747,1749448239233,-530.01113979,0.00021973,2]
[365080748,1749448239243,-500.0,0.00021973,2]
[365080749,1749448239253,-500.0,0.00021973,2]
[365080750,1749448239264,-76293.924517,0.00022,2]
[365080751,1749448239274,-43392.84,0.00022,7]
[365080753,1749448239284,-71958.03182735,0.00022,2]
[365080754,1749448239294,-160.76859129,0.00022,2]
[365080755,1749448239305,-195.0,0.00022,3]
[365080756,1749448239315,-53965.13,0.00022,2]
[365080757,1749448239326,-778.98,0.0002201,4]
[365080758,1749448239335,-153.0,0.00022082,2]
[365080759,1749448239345,-176.7945791,0.00022082,2]
[365080760,1749448239355,-573.244939,0.00022082,2]
[365080761,1749448239366,-158.7201836,0.00022082,2]
[365080762,1749448239376,-158.7201836,0.00022082,2]
[365080763,1749448239386,-176.7945794,0.00022082,2]
[365080764,1749448239396,-573.244939,0.00022082,2]
[365080765,1749448239407,-153.0,0.00022082,2]
[365080766,1749448239418,-573.244939,0.00022082,2]
[365080767,1749448239428,-158.7201836,0.00022082,2]
[365080768,1749448239438,-176.7945791,0.00022082,2]
[365080769,1749448239450,-153.0,0.00022082,2]
[365080770,1749448239460,-176.7945793,0.00022082,2]
[365080771,1749448239470,-158.7201836,0.00022082,2]
[365080772,1749448239482,-573.244939,0.00022082,2]
[365080773,1749448239492,-158.7201836,0.00022082,2]
[365080774,1749448239502,-176.7945791,0.00022082,2]
[365080775,1749448239512,-573.244939,0.00022082,2]
[365080776,1749448239523,-153.0,0.00022082,2]
[365080777,1749448239533,-376.1639127,0.00022082,2]
[365080778,1749448239543,-459.4591812,0.00022082,2]
[365080779,1749448239553,-153.0,0.00022082,2]
[365080780,1749448239563,-153.0,0.00022082,2]
[365080781,1749448239573,-153.0,0.00022082,2]
[365080782,1749448239588,-153.0,0.00022082,2]
[365080783,1749448239598,-153.0,0.00022082,2]
[365080784,1749448239608,-361.72023422,0.000221,2]
[365080785,1749448239618,-778.98,0.0002211,3]
[365080786,1749448239628,-441.87417449,0.00022141,6]
[365080787,1749448239639,-163.96020558,0.00022178,2]
[365080788,1749448239649,-440.0,0.00022191,4]
[365080789,1749448239660,-440.0,0.00022191,4]
[365080790,1749448239670,-440.0,0.00022191,4]
[365080791,1749448239681,-440.0,0.00022191,4]
[365080792,1749448239691,-476.3,0.00022191,4]
[365080793,1749448239702,-440.0,0.00022191,4]
[365080794,1749448239713,-5051.56,0.00022191,4]
[365080795,1749448239723,-450.44,0.00022191,4]
[365080796,1749448239733,-400.0,0.00022191,4]
[365080797,1749448239744,-440.0,0.00022191,4]
[365080798,1749448239754,-969.65,0.00022191,4]
[365080799,1749448239764,-440.0,0.00022191,4]
[365080800,1749448239775,-440.0,0.00022191,4]
[365080801,1749448239786,-420.0,0.00022191,4]
[365080802,1749448239796,-498.39,0.00022191,4]
[365080803,1749448239808,-440.0,0.00022191,4]
[365080804,1749448239818,-609.7,0.00022191,4]
[365080805,1749448239828,-440.0,0.00022191,4]
[365080806,1749448239838,-586.04,0.00022191,4]
[365080807,1749448239848,-501.21633244,0.00022191,4]
[365080808,1749448239858,-741.03,0.00022191,4]
[365080809,1749448239868,-440.0,0.00022191,4]
[365080810,1749448239879,-525.07,0.00022191,4]
[365080811,1749448239889,-899.42,0.00022191,4]
[365080812,1749448239899,-787.11,0.00022191,4]
[365080813,1749448239911,-445.16952558,0.00022191,4]
[365080814,1749448239922,-440.0,0.00022191,4]
[365080815,1749448239933,-440.0,0.00022191,4]
[365080816,1749448239945,-440.0,0.00022191,4]
[365080817,1749448239955,-440.0,0.00022191,4]
[365080818,1749448239966,-440.0,0.00022191,4]
[365080819,1749448239976,-440.0,0.00022191,4]
[365080820,1749448239987,-440.0,0.00022191,4]
[365080822,1749448239998,-778.98,0.0002221,3]
[365080824,1749448240008,-1000.0,0.0002224,2]
[365080825,1749448240018,-803.34,0.000223,7]
[365080826,1749448240030,-778.98,0.0002231,7]
[365080827,1749448240040,-441.87417449,0.00022314,7]
[365080828,1749448240052,-778.98,0.0002241,6]
[365080829,1749448240061,-440.0,0.00022465,4]
[365080830,1749448240071,-440.0,0.00022465,4]
[365080831,1749448240081,-440.0,0.00022465,4]
[365080832,1749448240091,-476.3,0.00022465,4]
[365080833,1749448240101,-440.0,0.00022465,4]
[365080834,1749448240111,-400.0,0.00022465,2]
[365080835,1749448240120,-400.0,0.00022465,2]
[365080836,1749448240130,-400.0,0.00022465,2]
[365080837,1749448240141,-5051.56,0.00022465,4]
[365080838,1749448240151,-450.44,0.00022465,4]
[365080839,1749448240161,-440.0,0.00022465,4]
[365080840,1749448240171,-969.65,0.00022465,4]
[365080841,1749448240181,-440.0,0.00022465,4]
[365080842,1749448240193,-440.0,0.00022465,4]
[365080843,1749448240204,-498.39,0.00022465,4]
[365080844,1749448240213,-440.0,0.00022465,4]
[365080845,1749448240223,-500.0,0.00022465,2]
[365080846,1749448240233,-609.7,0.00022465,4]
[365080847,1749448240243,-440.0,0.00022465,4]
[365080848,1749448240253,-586.04,0.00022465,4]
[365080849,1749448240263,-741.03,0.00022465,4]
[365080850,1749448240273,-440.0,0.00022465,4]
[365080851,1749448240282,-525.07,0.00022465,4]
[365080852,1749448240292,-899.42,0.00022465,4]
[365080853,1749448240303,-787.11,0.00022465,4]
[365080854,1749448240313,-440.0,0.00022465,4]
[365080855,1749448240323,-313.27109437,0.00022465,4]
[365080856,1749448240333,-440.0,0.00022465,4]
[365080857,1749448240343,-440.0,0.00022465,4]
[365080858,1749448240354,-440.0,0.00022465,4]
[365080859,1749448240364,-410.0,0.00022465,4]
[365080860,1749448240374,-441.87417449,0.00022486,7]
[365080861,1749448240384,-2000.0,0.000225,2]
[365080862,1749448240396,-1503.21145792,0.000225,2]
[365080863,1749448240406,-361.72023422,0.000225,2]
[365080864,1749448240416,-778.98,0.0002251,4]
[365080865,1749448240426,-504.30735169,0.00022521,2]
[365080866,1749448240437,-508.80002652,0.00022521,2]
[365080867,1749448240448,-1000.0,0.00022521,2]
[365080868,1749448240458,-1000.0,0.00022521,2]
[365080869,1749448240469,-587.0,0.00022573,2]
[365080870,1749448240478,-28652.12376673,0.000226,7]
[365080871,1749448240488,-778.98,0.0002261,2]
[365080872,1749448240498,-364.9269501,0.0002263,2]
[365080873,1749448240508,-364.9269501,0.0002263,2]
[365080874,1749448240518,-189.4970927,0.0002263,2]
[365080875,1749448240528,-441.87417449,0.00022659,7]
[365080876,1749448240538,-500.0,0.00022673,2]
[365080877,1749448240548,-500.0,0.00022673,2]
[365080878,1749448240558,-500.0,0.00022673,2]
[365080879,1749448240568,-500.0,0.00022673,2]
[365080880,1749448240578,-592.40210575,0.00022673,2]
[365080881,1749448240588,-500.0,0.00022673,2]
[365080882,1749448240598,-512.03976152,0.00022673,2]
[365080883,1749448240608,-500.0,0.00022673,2]
[365080884,1749448240619,-500.0,0.00022673,2]
[365080885,1749448240629,-500.0,0.00022673,2]
[365080886,1749448240639,-600.0,0.00022673,2]
[365080887,1749448240648,-338529.51012904,0.000227,2]
[365080888,1749448240658,-778.98,0.0002271,6]
[365080889,1749448240668,-440.95080469,0.00022739,4]
[365080890,1749448240678,-441.35070794,0.00022739,4]
[365080891,1749448240688,-440.0,0.00022739,4]
[365080892,1749448240698,-476.3,0.00022739,4]
[365080893,1749448240708,-440.0,0.00022739,4]
[365080894,1749448240718,-400.0,0.00022739,2]
[365080895,1749448240728,-5051.56,0.00022739,4]
[365080896,1749448240739,-450.44,0.00022739,4]
[365080897,1749448240749,-969.65,0.00022739,4]
[365080898,1749448240759,-440.0,0.00022739,4]
[365080899,1749448240769,-440.0,0.00022739,4]
[365080900,1749448240778,-498.39,0.00022739,4]
[365080901,1749448240788,-440.0,0.00022739,4]
[365080902,1749448240799,-609.7,0.00022739,4]
[365080903,1749448240814,-440.0,0.00022739,4]
[365080904,1749448240825,-586.04,0.00022739,4]
[365080905,1749448240835,-741.03,0.00022739,4]
[365080906,1749448240847,-560.25996135,0.00022739,4]
[365080907,1749448240858,-525.07,0.00022739,4]
[365080908,1749448240869,-899.42,0.00022739,4]
[365080909,1749448240879,-787.11,0.00022739,4]
[365080910,1749448240891,-440.0,0.00022739,4]
[365080911,1749448240901,-440.0,0.00022739,4]
[365080912,1749448240911,-440.0,0.00022739,4]
[365080913,1749448240921,-440.0,0.00022739,4]
[365080914,1749448240931,-1500.0,0.00022788,2]
[365080915,1749448240941,-778.98,0.0002281,4]
[365080916,1749448240951,-441.87417449,0.00022831,8]
[365080917,1749448240961,-361.72023422,0.000229,2]
[365080918,1749448240971,-153.0,0.00022904,2]
[365080919,1749448240980,-153.0,0.00022904,2]
[365080920,1749448240991,-153.0,0.00022904,2]
[365080921,1749448241000,-317.4403672,0.00022904,2]
[365080922,1749448241010,-153.0,0.00022904,2]
[365080923,1749448241022,-153.0,0.00022904,2]
[365080924,1749448241040,-153.0,0.00022904,2]
[365080925,1749448241051,-153.0,0.00022904,2]
[365080926,1749448241063,-153.0,0.00022904,2]
[365080927,1749448241074,-153.0,0.00022904,2]
[365080928,1749448241084,-153.0,0.00022904,2]
[365080929,1749448241095,-153.0,0.00022904,2]
[365080930,1749448241106,-153.0,0.00022904,2]
[365080931,1749448241116,-165.9511691,0.00022904,2]
[365080932,1749448241126,-153.0,0.00022904,2]
[365080933,1749448241136,-153.0,0.00022904,2]
[365080934,1749448241146,-153.0,0.00022904,2]
[365080935,1749448241157,-153.0,0.00022904,2]
[365080936,1749448241168,-153.0,0.00022904,2]
[365080937,1749448241178,-153.0,0.00022904,2]
[365080938,1749448241188,-153.0,0.00022904,2]
[365080939,1749448241200,-153.0,0.00022904,2]
[365080940,1749448241210,-153.0,0.00022904,2]
[365080941,1749448241220,-153.0,0.00022904,2]
[365080942,1749448241230,-153.0,0.00022904,2]
[365080943,1749448241240,-153.0,0.00022904,2]
[365080944,1749448241250,-153.0,0.00022904,2]
[365080945,1749448241367,-778.98,0.0002291,5]
[365080946,1749448241390,-500.0,0.00022973,2]
[365080947,1749448241400,-500.0,0.00022973,2]
[365080948,1749448241410,-500.0,0.00022973,2]
[365080949,1749448241419,-150.0,0.00022973,2]
[365080950,1749448241429,-2000.0,0.00023,2]
[365080951,1749448241438,-1500.0,0.00023,2]
[365080952,1749448241448,-65385.84541245,0.00023,2]
[365080953,1749448241457,-248.5227469,0.00023,2]
[365080954,1749448241467,-67767.37366736,0.00023,2]
[365080955,1749448241742,-500.0,0.00020758,2]
[365080956,1749448241752,-242.14684643,0.00020758,2]
[365080987,1749448242818,-257.85315357,0.00020758,2]
[365080989,1749448242829,-500.0,0.00020758,2]
[365080991,1749448242839,-500.0,0.00020758,2]
[365080994,1749448242849,-500.0,0.00020758,2]
[365080996,1749448242860,-334.22,0.00021385,10]
[365080998,1749448242870,-440.0,0.00021917,4]
[365081000,1749448242880,-440.0,0.00022191,4]
[365081002,1749448242891,-440.0,0.00022465,4]
[365081004,1749448242901,-440.0,0.00022739,4]
[365081006,1749448242911,-3025.73004227,0.00023,2]
[365081008,1749448242920,-193.47485441,0.00023,4]
[365081010,1749448242930,-156.004535,0.00023,7]
[365081012,1749448242940,-151.0,0.00023,7]
[365081014,1749448242949,-154.508517,0.00023,7]
[365081016,1749448242958,-151.0,0.00023,7]
[365081018,1749448242968,-151.0,0.00023,7]
[365081020,1749448242978,-151.0,0.00023,7]
[365081022,1749448242989,-151.0,0.00023,7]
[365081024,1749448242999,-285.154581,0.00023,7]
[365081027,1749448243008,-904.0,0.00023,2]
[365081030,1749448243018,-500.0,0.00023,3]
[365081033,1749448243028,-500.0,0.00023,3]
[365081036,1749448243037,-151.0,0.00023,7]
[365081039,1749448243047,-500.0,0.00023,3]
[365081041,1749448243057,-500.0,0.00023,2]
[365081043,1749448243067,-151.0,0.00023,7]
[365081045,1749448243077,-500.0,0.00023,3]
[365081047,1749448243087,-500.0,0.00023,3]
[365081049,1749448243097,-151.0,0.00023,7]
[365081051,1749448243107,-166.957518,0.00023,2]
[365081053,1749448243116,-500.0,0.00023,3]
[365081055,1749448243125,-166.957518,0.00023,2]
[365081057,1749448243134,-156.453536,0.00023,7]
[365081059,1749448243144,-500.0,0.00023,2]
[365081061,1749448243153,-152.449655,0.00023,7]
[365081063,1749448243163,-153.142136,0.00023,7]
[365081065,1749448243173,-151.0,0.00023,7]
[365081067,1749448243182,-151.0,0.00023,7]
[365081069,1749448243192,-151.0,0.00023,7]
[365081072,1749448243202,-151.0,0.00023,7]
[365081074,1749448243212,-151.347368,0.00023,7]
[365081076,1749448243222,-151.0,0.00023,7]
[365081078,1749448243231,-151.0,0.00023,7]
[365081080,1749448243240,-304.69835478,0.00023003,8]
[365081082,1749448243252,-137.17581971,0.00023003,8]
[365081084,1749448243262,-195.33534456,0.0002301,4]
[365081110,1749448245860,-583.64465544,0.0002301,4]
[365081111,1749448245871,-476.3,0.00023013,4]
[365081112,1749448245881,-440.0,0.00023013,4]
[365081113,1749448245891,-400.0,0.00023013,2]
[365081114,1749448245902,-4373.79704652,0.00023013,4]
[365081115,1749448245914,-677.76295348,0.00023013,4]
[365081116,1749448245925,-450.44,0.00023013,4]
[365081117,1749448245935,-969.65,0.00023013,4]
[365081118,1749448245945,-440.0,0.00023013,4]
[365081119,1749448245954,-440.0,0.00023013,4]
[365081120,1749448245964,-498.39,0.00023013,4]
[365081121,1749448245973,-176.7770998,0.00023013,4]
[365081122,1749448245983,-516.48314463,0.00023013,2]
[365081123,1749448245993,-609.7,0.00023013,4]
[365081124,1749448246002,-440.0,0.00023013,4]
[365081125,1749448246012,-586.04,0.00023013,4]
[365081126,1749448246021,-741.03,0.00023013,4]
[365081127,1749448246031,-525.07,0.00023013,4]
[365081128,1749448246042,-899.42,0.00023013,4]
[365081129,1749448246051,-787.11,0.00023013,4]
[365081130,1749448246061,-440.0,0.00023013,4]
[365081131,1749448246070,-440.0,0.00023013,4]
[365081132,1749448246080,-440.0,0.00023013,4]
[365081133,1749448246090,-440.0,0.00023013,4]
[365081134,1749448246103,-1688.0,0.0002302,2]
[365081135,1749448246117,-151.31920398,0.0002302,2]
[365081136,1749448246131,-2547.38428097,0.0002302,2]
[365081137,1749448246148,-2452.61571903,0.0002302,2]
[365081138,1749448246161,-151.34355789,0.0002302,2]